[Event "Late-Titled-Tuesday-Blitz-April-23-2024"]
[Site "Chess.com"]
[Date "2024.04.23"]
[Round "4"]
[White "contrerasfiorella"]
[Black "Sandstad"]
[Result "1-0"]
[WhiteElo "2227"]
[BlackElo "2472"]
[TimeControl "180+1"]
[EndTime "14:40:15 PDT"]
[Termination "contrerasfiorella won by checkmate"]

1. e4 {[%clk 0:02:34.6]} 1... c6 {[%clk 0:02:58.7]} 2. d4 {[%clk 0:02:31.2]}
2... d5 {[%clk 0:02:58.6]} 3. exd5 {[%clk 0:02:32.1]} 3... cxd5 {[%clk
0:02:57.4]} 4. Bf4 {[%clk 0:02:32.5]} 4... Nc6 {[%clk 0:02:53.5]} 5. c3 {[%clk
0:02:32.2]} 5... Nf6 {[%clk 0:02:45.8]} 6. Nd2 {[%clk 0:02:29.7]} 6... Bg4
{[%clk 0:02:38.2]} 7. Qb3 {[%clk 0:02:29.4]} 7... Qd7 {[%clk 0:02:32.9]} 8. Ngf3
{[%clk 0:02:29.7]} 8... e6 {[%clk 0:02:32.6]} 9. Ne5 {[%clk 0:02:29.7]} 9... Qc8
{[%clk 0:02:26.5]} 10. f3 {[%clk 0:02:27]} 10... Bf5 {[%clk 0:02:23.5]} 11. g4
{[%clk 0:02:27.5]} 11... Bg6 {[%clk 0:02:22.4]} 12. h4 {[%clk 0:02:27.4]} 12...
h5 {[%clk 0:02:13.9]} 13. Nxg6 {[%clk 0:02:24.3]} 13... fxg6 {[%clk 0:02:14.8]}
14. Bd3 {[%clk 0:02:17.2]} 14... hxg4 {[%clk 0:02:12.4]} 15. Bxg6+ {[%clk
0:02:16.8]} 15... Kd7 {[%clk 0:02:12.2]} 16. fxg4 {[%clk 0:01:52.6]} 16... Nxg4
{[%clk 0:02:11.5]} 17. Nf3 {[%clk 0:01:53.1]} 17... Bd6 {[%clk 0:01:58.7]} 18.
Bxd6 {[%clk 0:01:47.4]} 18... Kxd6 {[%clk 0:01:59.6]} 19. Ng5 {[%clk 0:01:24]}
19... Kc7 {[%clk 0:01:37.9]} 20. Bf7 {[%clk 0:01:04.8]} 20... Nd8 {[%clk
0:01:23.5]} 21. Bg6 {[%clk 0:01:05]} 21... Rh6 {[%clk 0:01:14.7]} 22. h5 {[%clk
0:00:59.5]} 22... Ne3 {[%clk 0:01:06.2]} 23. Ke2 {[%clk 0:00:57.2]} 23... Nc4
{[%clk 0:00:58.3]} 24. Raf1 {[%clk 0:00:55]} 24... Qd7 {[%clk 0:00:53.5]} 25.
Rf8 {[%clk 0:00:49.8]} 25... Qe7 {[%clk 0:00:47.8]} 26. Rhf1 {[%clk 0:00:38]}
26... Qxg5 {[%clk 0:00:36.2]} 27. R1f7+ {[%clk 0:00:33.8]} 27... Kc6 {[%clk
0:00:20.6]} 28. Qa4+ {[%clk 0:00:26.6]} 28... b5 {[%clk 0:00:19.9]} 29. Qa6+
{[%clk 0:00:22.6]} 29... Nb6 {[%clk 0:00:19.4]} 30. Rxd8 {[%clk 0:00:21.2]}
30... Qxd8 {[%clk 0:00:17.5]} 31. Qb7+ {[%clk 0:00:19.5]} 31... Kd6 {[%clk
0:00:17.7]} 32. Rxg7 {[%clk 0:00:15.9]} 32... Rh8 {[%clk 0:00:17.6]} 33. Qf7
{[%clk 0:00:15.4]} 33... Rf8 {[%clk 0:00:17.4]} 34. Qb7 {[%clk 0:00:15.5]} 34...
Rb8 {[%clk 0:00:14.2]} 35. Qa6 {[%clk 0:00:15.6]} 35... Qh4 {[%clk 0:00:12.6]}
36. Qa3+ {[%clk 0:00:15.5]} 36... Kc6 {[%clk 0:00:12.2]} 37. Qc5# {[%clk
0:00:16.1]} 1-0

[Event "Late-Titled-Tuesday-Blitz-April-23-2024"]
[Site "Chess.com"]
[Date "2024.04.23"]
[Round "4"]
[White "m_ezat"]
[Black "KebabJangles"]
[Result "0-1"]
[WhiteElo "2608"]
[BlackElo "2227"]
[TimeControl "180+1"]
[EndTime "14:40:15 PDT"]
[Termination "KebabJangles won by checkmate"]

1. d4 {[%clk 0:02:48.6]} 1... Nf6 {[%clk 0:02:59.6]} 2. Nc3 {[%clk 0:02:48.1]}
2... g6 {[%clk 0:02:48.7]} 3. e4 {[%clk 0:02:03.3]} 3... d6 {[%clk 0:02:46.6]}
4. h4 {[%clk 0:02:03.6]} 4... h5 {[%clk 0:02:45.3]} 5. Nf3 {[%clk 0:02:02.8]}
5... Bg7 {[%clk 0:02:44.4]} 6. Ng5 {[%clk 0:02:02.8]} 6... O-O {[%clk 0:02:44]}
7. Bf4 {[%clk 0:02:01.8]} 7... Nc6 {[%clk 0:02:41.4]} 8. Bc4 {[%clk 0:01:58.7]}
8... e6 {[%clk 0:02:25.2]} 9. Bb3 {[%clk 0:01:09.5]} 9... Nh7 {[%clk 0:02:08.7]}
10. Be3 {[%clk 0:00:44.7]} 10... Nxg5 {[%clk 0:02:01.9]} 11. hxg5 {[%clk
0:00:44.3]} 11... e5 {[%clk 0:02:02.4]} 12. dxe5 {[%clk 0:00:43.5]} 12... Nxe5
{[%clk 0:02:01.9]} 13. f3 {[%clk 0:00:42]} 13... Be6 {[%clk 0:01:57.8]} 14. Qd2
{[%clk 0:00:41.5]} 14... Qe7 {[%clk 0:01:53.1]} 15. O-O-O {[%clk 0:00:40.8]}
15... Rad8 {[%clk 0:01:51.4]} 16. Kb1 {[%clk 0:00:40.9]} 16... c6 {[%clk
0:01:51.5]} 17. Rh2 {[%clk 0:00:37.4]} 17... d5 {[%clk 0:01:47.5]} 18. exd5
{[%clk 0:00:36.7]} 18... cxd5 {[%clk 0:01:47.4]} 19. Bd4 {[%clk 0:00:36.8]}
19... Nc4 {[%clk 0:01:45.9]} 20. Qe2 {[%clk 0:00:32.5]} 20... Qxg5 {[%clk
0:01:45.3]} 21. Bxg7 {[%clk 0:00:31.2]} 21... Kxg7 {[%clk 0:01:46.2]} 22. Rhh1
{[%clk 0:00:26.4]} 22... Rfe8 {[%clk 0:01:33.5]} 23. Qf2 {[%clk 0:00:26]} 23...
Ne3 {[%clk 0:01:27.4]} 24. f4 {[%clk 0:00:23.6]} 24... Nxd1 {[%clk 0:01:27.3]}
25. Rxd1 {[%clk 0:00:22.1]} 25... Qf6 {[%clk 0:01:26]} 26. Ne2 {[%clk
0:00:19.9]} 26... d4 {[%clk 0:01:25]} 27. Nxd4 {[%clk 0:00:19.7]} 27... Bxb3
{[%clk 0:01:24.7]} 28. axb3 {[%clk 0:00:20.6]} 28... Rd6 {[%clk 0:01:20.4]} 29.
Rd3 {[%clk 0:00:20.7]} 29... Red8 {[%clk 0:01:20.5]} 30. c3 {[%clk 0:00:20.7]}
30... b5 {[%clk 0:01:19.7]} 31. f5 {[%clk 0:00:20.8]} 31... b4 {[%clk
0:01:19.5]} 32. Qg3 {[%clk 0:00:20.2]} 32... bxc3 {[%clk 0:01:18.3]} 33. bxc3
{[%clk 0:00:19.5]} 33... Kh7 {[%clk 0:01:15.7]} 34. Kb2 {[%clk 0:00:18.7]} 34...
a5 {[%clk 0:01:15]} 35. Rf3 {[%clk 0:00:18.6]} 35... g5 {[%clk 0:01:08.9]} 36.
Qh2 {[%clk 0:00:15.4]} 36... Kh6 {[%clk 0:00:58.6]} 37. Rd3 {[%clk 0:00:14]}
37... a4 {[%clk 0:00:53]} 38. b4 {[%clk 0:00:13.6]} 38... Ra8 {[%clk 0:00:51.3]}
39. Ka3 {[%clk 0:00:12.9]} 39... Rc8 {[%clk 0:00:49.7]} 40. g4 {[%clk
0:00:12.5]} 40... h4 {[%clk 0:00:49.2]} 41. Rd2 {[%clk 0:00:07.4]} 41... Rxc3+
{[%clk 0:00:49]} 42. Kb2 {[%clk 0:00:07.7]} 42... Rc4 {[%clk 0:00:45.3]} 43. Ka3
{[%clk 0:00:08]} 43... Rcxd4 {[%clk 0:00:45.6]} 44. Rxd4 {[%clk 0:00:08]} 44...
Rxd4 {[%clk 0:00:46.5]} 45. Qb2 {[%clk 0:00:07.5]} 45... Qd6 {[%clk 0:00:43.5]}
46. Kxa4 {[%clk 0:00:08.4]} 46... Qc6+ {[%clk 0:00:41.5]} 47. Kb3 {[%clk
0:00:08.8]} 47... Qc4+ {[%clk 0:00:41.4]} 48. Ka3 {[%clk 0:00:09.7]} 48... Rd3+
{[%clk 0:00:41.3]} 49. Ka4 {[%clk 0:00:10.3]} 49... Qa6# {[%clk 0:00:41.5]} 0-1

[Event "Late-Titled-Tuesday-Blitz-April-23-2024"]
[Site "Chess.com"]
[Date "2024.04.23"]
[Round "4"]
[White "Bala-Afiada"]
[Black "NowInChess"]
[Result "0-1"]
[WhiteElo "1976"]
[BlackElo "2250"]
[TimeControl "180+1"]
[EndTime "14:40:16 PDT"]
[Termination "NowInChess won by resignation"]

1. d4 {[%clk 0:02:28.2]} 1... Nf6 {[%clk 0:02:57.4]} 2. c4 {[%clk 0:02:28.8]}
2... c5 {[%clk 0:02:56.8]} 3. d5 {[%clk 0:02:28.8]} 3... b5 {[%clk 0:02:57.1]}
4. cxb5 {[%clk 0:02:29.7]} 4... a6 {[%clk 0:02:57.4]} 5. b6 {[%clk 0:02:30.4]}
5... d6 {[%clk 0:02:55.2]} 6. Nc3 {[%clk 0:02:30.8]} 6... Nbd7 {[%clk 0:02:55]}
7. Nf3 {[%clk 0:02:29.5]} 7... Nxb6 {[%clk 0:02:52]} 8. e4 {[%clk 0:02:29.1]}
8... g6 {[%clk 0:02:50.8]} 9. a4 {[%clk 0:02:29]} 9... Rb8 {[%clk 0:02:50.2]}
10. a5 {[%clk 0:02:27.5]} 10... Na8 {[%clk 0:02:50.2]} 11. Bc4 {[%clk
0:02:20.5]} 11... Nc7 {[%clk 0:02:46.3]} 12. O-O {[%clk 0:02:15.6]} 12... Bg7
{[%clk 0:02:45.7]} 13. Qc2 {[%clk 0:02:12.4]} 13... O-O {[%clk 0:02:38.1]} 14.
Na4 {[%clk 0:02:07.8]} 14... Bg4 {[%clk 0:02:25.7]} 15. Be2 {[%clk 0:01:51.7]}
15... Bxf3 {[%clk 0:02:21.2]} 16. Bxf3 {[%clk 0:01:51.5]} 16... Nb5 {[%clk
0:02:21.8]} 17. Nb6 {[%clk 0:01:49.9]} 17... Nd4 {[%clk 0:02:06.2]} 18. Qd3
{[%clk 0:01:49.2]} 18... Nd7 {[%clk 0:02:03.9]} 19. Nxd7 {[%clk 0:01:31.7]}
19... Qxd7 {[%clk 0:02:04.8]} 20. Bd1 {[%clk 0:01:15.5]} 20... Qb5 {[%clk
0:01:49.2]} 21. Qxb5 {[%clk 0:01:06.3]} 21... Rxb5 {[%clk 0:01:50.1]} 22. Ra3
{[%clk 0:00:55.8]} 22... Rfb8 {[%clk 0:01:46.3]} 23. Re1 {[%clk 0:00:24.6]}
23... Kf8 {[%clk 0:01:40.4]} 24. g3 {[%clk 0:00:20.3]} 24... h5 {[%clk
0:01:21.9]} 25. Kg2 {[%clk 0:00:20.4]} 25... Nb3 {[%clk 0:01:16.1]} 26. Bg5
{[%clk 0:00:16]} 26... Nxa5 {[%clk 0:01:10.1]} 27. Be2 {[%clk 0:00:13.3]} 27...
c4 {[%clk 0:01:07.2]} 28. Rf3 {[%clk 0:00:11.4]} 28... Bxb2 {[%clk 0:01:02.4]}
29. Rb1 {[%clk 0:00:11]} 29... Bd4 {[%clk 0:00:59.4]} 30. Rxb5 {[%clk
0:00:06.4]} 30... axb5 {[%clk 0:01:00.3]} 31. Bh6+ {[%clk 0:00:07]} 31... Kg8
{[%clk 0:00:59.4]} 32. Bd2 {[%clk 0:00:07.6]} 32... b4 {[%clk 0:00:56.6]} 33.
Bc1 {[%clk 0:00:05.6]} 33... c3 {[%clk 0:00:55.2]} 34. Rd3 {[%clk 0:00:03.9]}
34... Bg7 {[%clk 0:00:50.2]} 35. f4 {[%clk 0:00:04.4]} 35... Nb3 {[%clk
0:00:49.1]} 36. Be3 {[%clk 0:00:03.1]} 36... Nc5 {[%clk 0:00:48.2]} 37. Rd1
{[%clk 0:00:02.9]} 37... Nxe4 {[%clk 0:00:47.4]} 38. Bf3 {[%clk 0:00:02.6]}
38... Nc5 {[%clk 0:00:45.7]} 39. Bxc5 {[%clk 0:00:01.5]} 39... dxc5 {[%clk
0:00:46.6]} 40. d6 {[%clk 0:00:02]} 40... exd6 {[%clk 0:00:46.2]} 41. Rxd6
{[%clk 0:00:02.9]} 41... c2 {[%clk 0:00:45.6]} 42. Bd5 {[%clk 0:00:02]} 42...
c1=Q {[%clk 0:00:44.9]} 43. Rd7 {[%clk 0:00:02.8]} 43... Qb2+ {[%clk 0:00:42.9]}
44. Kh3 {[%clk 0:00:03.1]} 44... Qf6 {[%clk 0:00:43.8]} 45. Rxf7 {[%clk
0:00:02.7]} 45... Qxf7 {[%clk 0:00:44.5]} 46. Bxf7+ {[%clk 0:00:03.3]} 46...
Kxf7 {[%clk 0:00:45.3]} 0-1

[Event "Late-Titled-Tuesday-Blitz-April-23-2024"]
[Site "Chess.com"]
[Date "2024.04.23"]
[Round "4"]
[White "lupta_robin"]
[Black "Abund"]
[Result "1-0"]
[WhiteElo "2585"]
[BlackElo "2762"]
[TimeControl "180+1"]
[EndTime "14:40:19 PDT"]
[Termination "lupta_robin won by resignation"]

1. b3 {[%clk 0:03:00.9]} 1... e5 {[%clk 0:02:57.2]} 2. Bb2 {[%clk 0:03:01.8]}
2... Nc6 {[%clk 0:02:57.7]} 3. e3 {[%clk 0:03:02]} 3... Nf6 {[%clk 0:02:58.1]}
4. Nf3 {[%clk 0:03:02.5]} 4... Bd6 {[%clk 0:02:58.1]} 5. d4 {[%clk 0:02:59.3]}
5... O-O {[%clk 0:02:48]} 6. dxe5 {[%clk 0:02:56.4]} 6... Bb4+ {[%clk
0:02:37.8]} 7. c3 {[%clk 0:02:55.1]} 7... Ba5 {[%clk 0:02:37.9]} 8. exf6 {[%clk
0:02:53.2]} 8... Qxf6 {[%clk 0:02:38.8]} 9. Be2 {[%clk 0:02:44.4]} 9... d6
{[%clk 0:02:38.1]} 10. O-O {[%clk 0:02:43.6]} 10... Bf5 {[%clk 0:02:37.8]} 11.
Nd4 {[%clk 0:02:32.6]} 11... Bd7 {[%clk 0:02:32.2]} 12. Nxc6 {[%clk 0:02:12.6]}
12... bxc6 {[%clk 0:02:32.5]} 13. Bd3 {[%clk 0:02:03.8]} 13... Bb6 {[%clk
0:02:25]} 14. Nd2 {[%clk 0:02:01.7]} 14... d5 {[%clk 0:02:24.7]} 15. Qc2 {[%clk
0:01:58.5]} 15... Qh6 {[%clk 0:02:24.7]} 16. c4 {[%clk 0:01:51.6]} 16... Rfe8
{[%clk 0:02:12.6]} 17. c5 {[%clk 0:01:48.2]} 17... Ba5 {[%clk 0:02:13.1]} 18.
Nf3 {[%clk 0:01:40.3]} 18... Bg4 {[%clk 0:02:13.2]} 19. Nd4 {[%clk 0:01:39.2]}
19... Re5 {[%clk 0:02:13.3]} 20. f4 {[%clk 0:01:08.7]} 20... Rxe3 {[%clk
0:02:02.9]} 21. a3 {[%clk 0:01:09]} 21... Rae8 {[%clk 0:01:44.5]} 22. b4 {[%clk
0:01:08.3]} 22... Qh4 {[%clk 0:00:57.8]} 23. bxa5 {[%clk 0:01:04.3]} 23... g6
{[%clk 0:00:57.1]} 24. Qd2 {[%clk 0:00:57.2]} 24... f6 {[%clk 0:00:54.8]} 25.
Bc3 {[%clk 0:00:55.8]} 25... Kf7 {[%clk 0:00:50.9]} 26. Rae1 {[%clk 0:00:54.3]}
26... R3e7 {[%clk 0:00:47.9]} 27. g3 {[%clk 0:00:49.9]} 27... Qh3 {[%clk
0:00:45.8]} 28. Rxe7+ {[%clk 0:00:49.8]} 28... Rxe7 {[%clk 0:00:45.8]} 29. Re1
{[%clk 0:00:50.3]} 29... Rxe1+ {[%clk 0:00:37.4]} 30. Qxe1 {[%clk 0:00:51.2]}
30... Qh5 {[%clk 0:00:35.5]} 31. Nxc6 {[%clk 0:00:47]} 31... Be6 {[%clk
0:00:29]} 32. Nd8+ {[%clk 0:00:46.8]} 32... Kg7 {[%clk 0:00:27.8]} 33. Nxe6+
{[%clk 0:00:46.7]} 33... Kg8 {[%clk 0:00:23]} 34. Nd4 {[%clk 0:00:40.5]} 34...
Kf7 {[%clk 0:00:22.3]} 35. Qe6+ {[%clk 0:00:38.5]} 35... Kg7 {[%clk 0:00:22.4]}
36. Nf5+ {[%clk 0:00:35.9]} 36... gxf5 {[%clk 0:00:22.7]} 37. Bxf6+ {[%clk
0:00:33.7]} 37... Kh6 {[%clk 0:00:16.8]} 38. Be5+ {[%clk 0:00:23]} 38... Qg6
{[%clk 0:00:15.1]} 39. Bxf5 {[%clk 0:00:22.5]} 39... Qxe6 {[%clk 0:00:14.1]} 40.
Bxe6 {[%clk 0:00:23.4]} 40... c6 {[%clk 0:00:14.9]} 41. Bd7 {[%clk 0:00:22.3]}
1-0

[Event "Late-Titled-Tuesday-Blitz-April-23-2024"]
[Site "Chess.com"]
[Date "2024.04.23"]
[Round "4"]
[White "GMBenjaminBok"]
[Black "WoodlandMagic"]
[Result "1-0"]
[WhiteElo "3050"]
[BlackElo "2836"]
[TimeControl "180+1"]
[EndTime "14:40:20 PDT"]
[Termination "GMBenjaminBok won by resignation"]

1. d4 {[%clk 0:03:00.9]} 1... Nf6 {[%clk 0:02:58.6]} 2. c4 {[%clk 0:03:01]} 2...
e6 {[%clk 0:02:58]} 3. Nc3 {[%clk 0:03:01.3]} 3... Bb4 {[%clk 0:02:54.3]} 4. Qc2
{[%clk 0:03:01.6]} 4... d5 {[%clk 0:02:52]} 5. a3 {[%clk 0:03:01.4]} 5... Be7
{[%clk 0:02:49.3]} 6. Nf3 {[%clk 0:02:58.1]} 6... O-O {[%clk 0:02:47.9]} 7. Bf4
{[%clk 0:02:52.9]} 7... b6 {[%clk 0:02:38.6]} 8. cxd5 {[%clk 0:02:50.8]} 8...
Nxd5 {[%clk 0:02:22.6]} 9. Nxd5 {[%clk 0:02:50.4]} 9... Qxd5 {[%clk 0:02:22.5]}
10. e4 {[%clk 0:02:39.1]} 10... Qa5+ {[%clk 0:01:36.4]} 11. Bd2 {[%clk
0:02:36.8]} 11... Qh5 {[%clk 0:01:36.3]} 12. Qxc7 {[%clk 0:02:34.6]} 12... Re8
{[%clk 0:01:08.6]} 13. Be2 {[%clk 0:02:13.2]} 13... Ba6 {[%clk 0:01:05.9]} 14.
Bxa6 {[%clk 0:02:06.2]} 14... Nxa6 {[%clk 0:01:06]} 15. Qc4 {[%clk 0:02:05.8]}
15... Nb8 {[%clk 0:00:47.5]} 16. O-O {[%clk 0:01:59.7]} 16... Nd7 {[%clk
0:00:47.4]} 17. e5 {[%clk 0:01:45.5]} 17... Qg6 {[%clk 0:00:44.5]} 18. Rac1
{[%clk 0:01:42.8]} 18... b5 {[%clk 0:00:35.9]} 19. Qxb5 {[%clk 0:01:39.1]} 19...
Nb6 {[%clk 0:00:36.5]} 20. Qe2 {[%clk 0:01:07.4]} 20... Nd5 {[%clk 0:00:35.2]}
21. Rc4 {[%clk 0:01:07]} 21... Rab8 {[%clk 0:00:34.2]} 22. b4 {[%clk 0:01:06.5]}
22... h6 {[%clk 0:00:33.2]} 23. g3 {[%clk 0:01:03.7]} 23... Qg4 {[%clk
0:00:28.9]} 24. Kg2 {[%clk 0:00:57.9]} 24... a5 {[%clk 0:00:27.1]} 25. bxa5
{[%clk 0:00:39.7]} 25... Rb2 {[%clk 0:00:26.9]} 26. Qd3 {[%clk 0:00:38.2]} 26...
Bg5 {[%clk 0:00:16.2]} 27. Nxg5 {[%clk 0:00:11.7]} 27... hxg5 {[%clk 0:00:15]}
28. h3 {[%clk 0:00:09.1]} 28... Rxd2 {[%clk 0:00:13.3]} 29. Qxd2 {[%clk
0:00:06.7]} 29... Qe4+ {[%clk 0:00:11.9]} 30. Kg1 {[%clk 0:00:06.3]} 30... Rb8
{[%clk 0:00:10.9]} 31. Rfc1 {[%clk 0:00:06.3]} 31... g4 {[%clk 0:00:02.4]} 32.
Rc8+ {[%clk 0:00:06.1]} 32... Rxc8 {[%clk 0:00:02.6]} 33. Rxc8+ {[%clk
0:00:06.6]} 1-0

[Event "Late-Titled-Tuesday-Blitz-April-23-2024"]
[Site "Chess.com"]
[Date "2024.04.23"]
[Round "4"]
[White "h4parah5"]
[Black "GianmarcoVaR"]
[Result "1-0"]
[WhiteElo "3034"]
[BlackElo "2822"]
[TimeControl "180+1"]
[EndTime "14:40:20 PDT"]
[Termination "h4parah5 won by resignation"]

1. Nf3 {[%clk 0:03:00.9]} 1... Nf6 {[%clk 0:02:58.1]} 2. c4 {[%clk 0:03:00.5]}
2... g6 {[%clk 0:02:58]} 3. Nc3 {[%clk 0:02:59.2]} 3... Bg7 {[%clk 0:02:58.3]}
4. e4 {[%clk 0:02:59.8]} 4... O-O {[%clk 0:02:58.4]} 5. d4 {[%clk 0:03:00.5]}
5... d6 {[%clk 0:02:58.7]} 6. Be2 {[%clk 0:03:01.2]} 6... c5 {[%clk 0:02:57.2]}
7. O-O {[%clk 0:03:00.7]} 7... Bg4 {[%clk 0:02:56.5]} 8. d5 {[%clk 0:02:58.9]}
8... e6 {[%clk 0:02:56.5]} 9. h3 {[%clk 0:02:57.3]} 9... Bxf3 {[%clk 0:02:56.6]}
10. Bxf3 {[%clk 0:02:58.2]} 10... exd5 {[%clk 0:02:54.8]} 11. exd5 {[%clk
0:02:59.1]} 11... Re8 {[%clk 0:02:53.2]} 12. Bg5 {[%clk 0:02:57.5]} 12... Nbd7
{[%clk 0:02:51]} 13. Qd2 {[%clk 0:02:56.9]} 13... a6 {[%clk 0:02:43.8]} 14. a4
{[%clk 0:02:55.3]} 14... Qe7 {[%clk 0:02:20.3]} 15. Rfe1 {[%clk 0:02:33.2]}
15... Qf8 {[%clk 0:02:20.4]} 16. a5 {[%clk 0:02:30.7]} 16... Ne5 {[%clk
0:02:10.9]} 17. Be2 {[%clk 0:02:28.7]} 17... h6 {[%clk 0:02:05]} 18. Be3 {[%clk
0:02:26.1]} 18... Ned7 {[%clk 0:01:53.8]} 19. Bd3 {[%clk 0:02:22.3]} 19... Ne5
{[%clk 0:01:45.7]} 20. Bf1 {[%clk 0:02:20.9]} 20... Kh7 {[%clk 0:01:43.8]} 21.
Qc2 {[%clk 0:02:19]} 21... Ned7 {[%clk 0:01:38.4]} 22. Bd2 {[%clk 0:02:14.3]}
22... Rxe1 {[%clk 0:01:31.9]} 23. Rxe1 {[%clk 0:02:07.7]} 23... Re8 {[%clk
0:01:31.7]} 24. Qd1 {[%clk 0:02:02.8]} 24... h5 {[%clk 0:01:18.3]} 25. f4 {[%clk
0:01:52.9]} 25... Rxe1 {[%clk 0:01:09]} 26. Qxe1 {[%clk 0:01:50.4]} 26... Qe8
{[%clk 0:01:09.1]} 27. Bd3 {[%clk 0:01:44.3]} 27... Qxe1+ {[%clk 0:01:05.5]} 28.
Bxe1 {[%clk 0:01:45.2]} 28... Bh6 {[%clk 0:00:58.3]} 29. Ne2 {[%clk 0:01:43.9]}
29... Kg8 {[%clk 0:00:48.9]} 30. g3 {[%clk 0:01:43.6]} 30... Ne8 {[%clk
0:00:47.2]} 31. g4 {[%clk 0:01:39.3]} 31... hxg4 {[%clk 0:00:45.4]} 32. hxg4
{[%clk 0:01:40.2]} 32... Bf8 {[%clk 0:00:42.4]} 33. Kg2 {[%clk 0:01:37]} 33...
Be7 {[%clk 0:00:42.1]} 34. Kf3 {[%clk 0:01:36.3]} 34... Bf6 {[%clk 0:00:41.3]}
35. g5 {[%clk 0:01:34.2]} 35... Bxb2 {[%clk 0:00:40.7]} 36. Bc2 {[%clk
0:01:30.7]} 36... Kf8 {[%clk 0:00:40.1]} 37. Ke4 {[%clk 0:01:28.7]} 37... Ng7
{[%clk 0:00:35.3]} 38. Ba4 {[%clk 0:01:25.4]} 38... Ke7 {[%clk 0:00:35.3]} 39.
Ng3 {[%clk 0:01:24]} 39... Ba1 {[%clk 0:00:28.8]} 40. Kd3 {[%clk 0:01:21.1]}
40... Nf5 {[%clk 0:00:27.3]} 41. Nxf5+ {[%clk 0:01:17.1]} 41... gxf5 {[%clk
0:00:28.2]} 42. Ke2 {[%clk 0:01:17]} 42... f6 {[%clk 0:00:20.5]} 43. g6 {[%clk
0:01:13.5]} 43... Nb8 {[%clk 0:00:17.3]} 44. Bc2 {[%clk 0:01:12.3]} 44... Kf8
{[%clk 0:00:11.3]} 45. Bxf5 {[%clk 0:01:11.3]} 45... Kg7 {[%clk 0:00:12]} 46.
Kf3 {[%clk 0:01:06.8]} 46... Bd4 {[%clk 0:00:11.6]} 47. Kg4 {[%clk 0:01:06.6]}
47... Ba1 {[%clk 0:00:10.8]} 48. Kh5 {[%clk 0:01:05.7]} 48... Bb2 {[%clk
0:00:10.1]} 49. Bc8 {[%clk 0:01:05.5]} 49... Ba3 {[%clk 0:00:10.8]} 50. f5
{[%clk 0:01:00.3]} 50... Bb4 {[%clk 0:00:10.4]} 51. Bg3 {[%clk 0:01:00.1]} 51...
Bxa5 {[%clk 0:00:05.4]} 52. Bf4 {[%clk 0:01:00.2]} 52... Bc7 {[%clk 0:00:04.4]}
53. Bh6+ {[%clk 0:01:00.1]} 53... Kh8 {[%clk 0:00:01.4]} 54. g7+ {[%clk
0:01:00.2]} 54... Kh7 {[%clk 0:00:02.1]} 55. Be6 {[%clk 0:01:00.1]} 1-0

[Event "Late-Titled-Tuesday-Blitz-April-23-2024"]
[Site "Chess.com"]
[Date "2024.04.23"]
[Round "4"]
[White "Hrant_ChessMood"]
[Black "js20000"]
[Result "0-1"]
[WhiteElo "2943"]
[BlackElo "2747"]
[TimeControl "180+1"]
[EndTime "14:40:21 PDT"]
[Termination "js20000 won by resignation"]

1. c4 {[%clk 0:02:53]} 1... g6 {[%clk 0:02:59]} 2. d4 {[%clk 0:02:52]} 2... Bg7
{[%clk 0:02:59]} 3. e4 {[%clk 0:02:52.7]} 3... d6 {[%clk 0:02:57.7]} 4. Nc3
{[%clk 0:02:52.8]} 4... e5 {[%clk 0:02:57.2]} 5. Be3 {[%clk 0:02:46.9]} 5... Nc6
{[%clk 0:02:54.8]} 6. dxe5 {[%clk 0:02:43.4]} 6... dxe5 {[%clk 0:02:54.3]} 7.
Qxd8+ {[%clk 0:02:42.7]} 7... Nxd8 {[%clk 0:02:55.2]} 8. O-O-O {[%clk
0:02:42.3]} 8... c6 {[%clk 0:02:55]} 9. Nge2 {[%clk 0:02:32]} 9... Ne7 {[%clk
0:02:49.1]} 10. b4 {[%clk 0:02:13.6]} 10... Be6 {[%clk 0:02:38.6]} 11. c5 {[%clk
0:02:01.2]} 11... Bc4 {[%clk 0:02:38.5]} 12. Kb2 {[%clk 0:01:58.3]} 12... Ne6
{[%clk 0:02:37.9]} 13. Nc1 {[%clk 0:01:56.1]} 13... Bxf1 {[%clk 0:02:37.1]} 14.
Rhxf1 {[%clk 0:01:57]} 14... Rd8 {[%clk 0:02:37.1]} 15. Nb3 {[%clk 0:01:55.9]}
15... f5 {[%clk 0:02:07.1]} 16. f3 {[%clk 0:01:52]} 16... Rd7 {[%clk 0:01:52.3]}
17. Na5 {[%clk 0:01:50.7]} 17... Nd4 {[%clk 0:01:51.7]} 18. Nc4 {[%clk
0:01:46.5]} 18... Nc8 {[%clk 0:01:46.8]} 19. exf5 {[%clk 0:01:37.4]} 19... gxf5
{[%clk 0:01:44.1]} 20. f4 {[%clk 0:01:32.6]} 20... exf4 {[%clk 0:01:31.4]} 21.
Rxf4 {[%clk 0:01:29.6]} 21... Ne2 {[%clk 0:01:29.1]} 22. Rxd7 {[%clk 0:00:55.1]}
22... Kxd7 {[%clk 0:01:22.9]} 23. Rxf5 {[%clk 0:00:35.7]} 23... Ke6 {[%clk
0:01:22]} 24. Re5+ {[%clk 0:00:14.7]} 24... Bxe5 {[%clk 0:01:21.2]} 25. Nxe5
{[%clk 0:00:15.6]} 25... Nxc3 {[%clk 0:01:20.6]} 26. Kxc3 {[%clk 0:00:16.5]}
26... Rg8 {[%clk 0:01:20.4]} 27. Nd3 {[%clk 0:00:16.8]} 27... Ne7 {[%clk
0:01:18.1]} 28. g3 {[%clk 0:00:14.6]} 28... Nd5+ {[%clk 0:01:17.9]} 29. Kd2
{[%clk 0:00:15.3]} 29... Rd8 {[%clk 0:01:15.4]} 30. Bg5 {[%clk 0:00:09.2]} 30...
Rd7 {[%clk 0:01:13.5]} 31. Kc2 {[%clk 0:00:08.6]} 31... Kf5 {[%clk 0:01:13.1]}
32. Bd2 {[%clk 0:00:08.6]} 32... Re7 {[%clk 0:01:10.4]} 33. a4 {[%clk
0:00:08.1]} 33... Re2 {[%clk 0:01:09]} 34. b5 {[%clk 0:00:08.6]} 34... Rxh2
{[%clk 0:01:07.6]} 35. a5 {[%clk 0:00:07.2]} 35... cxb5 {[%clk 0:01:04.6]} 36.
a6 {[%clk 0:00:07.7]} 36... bxa6 {[%clk 0:01:03.6]} 37. c6 {[%clk 0:00:08.2]}
37... Ke6 {[%clk 0:00:57.5]} 38. Nc5+ {[%clk 0:00:06.5]} 38... Kd6 {[%clk
0:00:57.6]} 39. Nxa6 {[%clk 0:00:06.2]} 39... Kxc6 {[%clk 0:00:57.2]} 40. Kd3
{[%clk 0:00:07.1]} 40... Kb6 {[%clk 0:00:46.7]} 41. Nb8 {[%clk 0:00:05.3]} 41...
Rxd2+ {[%clk 0:00:46.1]} 42. Kxd2 {[%clk 0:00:05.2]} 42... Nf6 {[%clk
0:00:46.6]} 0-1